fUSD/lending_fUSD_20250427
["ID","MTS","AMOUNT","RATE_DAILY","PERIOD"]
[359137024,1745729445066,-478.58,0.00019929,2]
[359137026,1745729445081,-400.0,0.00019929,2]
[359137028,1745729445090,-500.51,0.00019929,2]
[359137030,1745729445100,-1371.95,0.00019929,2]
[359137032,1745729445110,-400.0,0.00019929,2]
[359137034,1745729445120,-463.13,0.00019929,2]
[359137036,1745729445130,-400.0,0.00019929,2]
[359137038,1745729445141,-400.0,0.00019929,2]
[359137040,1745729445150,-474.73,0.00019929,2]
[359137042,1745729445161,-400.0,0.00019929,2]
[359137044,1745729445172,-2124.96,0.00019929,2]
[359137046,1745729445182,-400.0,0.00019929,2]
[359137048,1745729445193,-400.0,0.00019929,2]
[359137049,1745729445205,-400.0,0.00019929,2]
[359137050,1745729445215,-2408.21038825,0.00019929,2]
[359137051,1745729445248,-400.0,0.00019928,2]
[359137052,1745729445260,-8456.15961175,0.00019929,2]
[359137053,1745729445270,-400.0,0.00019929,2]
[359137054,1745729445280,-450.15,0.00019929,2]
[359137055,1745729445290,-515.88,0.00019929,2]
[359137056,1745729445301,-2281.28,0.00019929,2]
[359137057,1745729445311,-400.0,0.00019929,2]
[359137058,1745729445321,-447.89,0.00019929,2]
[359137059,1745729445331,-61266.01,0.00019929,2]
[359137060,1745729445343,-411.63,0.00019929,2]
[359137061,1745729445354,-400.0,0.00019929,2]
[359137062,1745729445364,-400.0,0.00019929,2]
[359137063,1745729445374,-4960.24,0.00019929,2]
[359137064,1745729445385,-731.86,0.00019929,2]
[359137065,1745729445396,-3172.16,0.00019929,2]
[359137066,1745729445406,-414.91,0.00019929,2]
[359137067,1745729445416,-466.51270469,0.00019929,2]
[359137068,1745729445427,-534.14721425,0.00019929,2]
[359137069,1745729445440,-1155.84,0.00019929,2]
[359137070,1745729445451,-400.0,0.00019929,2]
[359137071,1745729445462,-400.0,0.00019929,2]
[359137072,1745729445472,-400.0,0.00019929,2]
[359137073,1745729445482,-400.0,0.00019929,2]
[359137074,1745729445492,-548.46,0.00019929,2]
[359137075,1745729445503,-400.0,0.00019929,2]
[359137076,1745729445513,-400.0,0.00019929,2]
[359137078,1745729445524,-400.0,0.00019929,2]
[359137081,1745729445542,-400.0,0.00019929,2]
[359137083,1745729445559,-400.0,0.00019929,2]
[359137085,1745729445570,-473.56,0.00019929,2]
[359137088,1745729445581,-400.0,0.00019929,2]
[359137090,1745729445592,-400.0,0.00019929,2]
[359137092,1745729445603,-400.0,0.00019929,2]
[359137094,1745729445614,-400.0,0.00019929,2]
[359137095,1745729445628,-400.0,0.00019929,2]
[359137098,1745729445639,-434.48,0.00019929,2]
[359137100,1745729445651,-950.37,0.00019929,2]
[359137102,1745729445661,-400.0,0.00019929,2]
[359137104,1745729445672,-426.47873869,0.00019929,2]
[359137106,1745729445682,-400.0,0.00019929,2]
[359137108,1745729445692,-473.61,0.00019929,2]
[359137110,1745729445703,-400.0,0.0001993,2]
[359137112,1745729445714,-411.96,0.0001993,2]
[359137114,1745729445725,-400.0,0.0001993,2]
[359137116,1745729445735,-467.33,0.0001993,2]
[359137118,1745729445745,-400.0,0.0001993,2]
[359137121,1745729445758,-514.72,0.0001993,2]
[359137123,1745729445768,-555.02,0.0001993,2]
[359137125,1745729445777,-400.0,0.0001993,2]
[359137127,1745729445787,-400.0,0.0001993,2]
[359137129,1745729445797,-400.0,0.0001993,2]
[359137131,1745729445807,-400.0,0.0001993,2]
[359137133,1745729445818,-445.93,0.0001993,2]
[359137135,1745729445828,-400.0,0.0001993,2]
[359137137,1745729445839,-472.29,0.0001993,2]
[359137139,1745729445850,-400.0,0.0001993,2]
[359137141,1745729445860,-400.0,0.0001993,2]
[359137143,1745729445870,-400.0,0.0001993,2]
[359137145,1745729445880,-400.0,0.0001993,2]
[359137147,1745729445890,-400.0,0.0001993,2]
[359137149,1745729445900,-417.19,0.0001993,2]
[359137151,1745729445910,-400.0,0.0001993,2]
[359137153,1745729445920,-400.0,0.0001993,2]
[359137155,1745729445931,-540.74,0.0001993,2]
[359137157,1745729445942,-2254.04,0.0001993,2]
[359137159,1745729445953,-400.0,0.0001993,2]
[359137161,1745729445963,-503.77,0.0001993,2]
[359137162,1745729445980,-400.0,0.0001993,2]
[359137163,1745729445991,-400.0,0.0001993,2]
[359137164,1745729446003,-400.0,0.0001993,2]
[359137165,1745729446014,-698.12,0.0001993,2]
[359137166,1745729446025,-652.01,0.0001993,2]
[359137167,1745729446036,-364.99058636,0.0001993,2]
[359137168,1745729446046,-208.79549551,0.0001993,2]
[359137169,1745729446057,-400.0,0.0001993,2]
[359137170,1745729446067,-400.0,0.0001993,2]
[359137171,1745729446077,-438.7,0.0001993,2]
[359137172,1745729446088,-457.43,0.0001993,2]
[359137174,1745729446099,-400.0,0.0001993,2]
[359137177,1745729446110,-461.42,0.0001993,2]
[359137179,1745729446120,-400.0,0.0001993,2]
[359137181,1745729446131,-500.0,0.00019973,2]
[359137183,1745729446142,-500.0,0.00019973,2]
[359137185,1745729446152,-500.0,0.00019973,2]
[359137187,1745729446163,-500.0,0.00019985,2]
[359137189,1745729446174,-500.0,0.00019988,2]
[359137191,1745729446185,-500.0,0.00019989,2]
[359137193,1745729446195,-500.0,0.00019989,2]
[359137195,1745729446206,-239.97,0.0001999,2]
[359137198,1745729446216,-239.97,0.0001999,2]
[359137200,1745729446226,-239.97,0.0001999,2]
[359137202,1745729446237,-239.97,0.0001999,2]
[359137204,1745729446247,-239.97,0.0001999,2]
[359137206,1745729446258,-239.97,0.0001999,2]
[359137208,1745729446268,-239.97,0.0001999,2]
[359137210,1745729446279,-239.97,0.0001999,2]
[359137212,1745729446289,-239.97,0.0001999,2]
[359137214,1745729446299,-239.97,0.0001999,2]
[359137216,1745729446309,-239.97,0.0001999,2]
[359137218,1745729446318,-239.97,0.0001999,2]
[359137220,1745729446328,-239.97,0.0001999,2]
[359137222,1745729446339,-239.97,0.0001999,2]
[359137224,1745729446350,-239.97,0.0001999,2]
[359137226,1745729446362,-239.97,0.0001999,2]
[359137228,1745729446372,-239.97,0.0001999,2]
[359137231,1745729446382,-239.97,0.0001999,2]
[359137233,1745729446392,-239.97,0.0001999,2]
[359137235,1745729446406,-239.97,0.0001999,2]
[359137237,1745729446421,-239.97,0.0001999,2]
[359137239,1745729446431,-239.97,0.0001999,2]
[359137241,1745729446441,-239.97,0.0001999,2]
[359137244,1745729446451,-239.97,0.0001999,2]
[359137246,1745729446462,-239.97,0.0001999,2]
[359137248,1745729446472,-239.97,0.0001999,2]
[359137250,1745729446482,-239.97,0.0001999,2]
[359137252,1745729446492,-239.97,0.0001999,2]
[359137254,1745729446503,-239.97,0.0001999,2]
[359137256,1745729446513,-239.97,0.0001999,2]
[359137258,1745729446523,-239.97,0.0001999,2]
[359137260,1745729446533,-239.97,0.0001999,2]
[359137262,1745729446543,-239.97,0.0001999,2]
[359137264,1745729446553,-239.97,0.0001999,2]
[359137266,1745729446563,-239.97,0.0001999,2]
[359137268,1745729446574,-239.97,0.0001999,2]
[359137270,1745729446584,-239.97,0.0001999,2]
[359137273,1745729446594,-239.97,0.0001999,2]
[359137275,1745729446604,-239.97,0.0001999,2]
[359137277,1745729446615,-239.97,0.0001999,2]
[359137280,1745729446625,-239.97,0.0001999,2]
[359137283,1745729446635,-239.97,0.0001999,2]
[359137285,1745729446645,-239.97,0.0001999,2]
[359137287,1745729446655,-239.97,0.0001999,2]
[359137289,1745729446665,-239.97,0.0001999,2]
[359137291,1745729446675,-239.97,0.0001999,2]
[359137293,1745729446685,-239.97,0.0001999,2]
[359137295,1745729446695,-239.97,0.0001999,2]
[359137297,1745729446705,-239.97,0.0001999,2]
[359137299,1745729446717,-239.97,0.0001999,2]
[359137301,1745729446727,-239.97,0.0001999,2]
[359137303,1745729446738,-239.97,0.0001999,2]
[359137305,1745729446748,-239.97,0.0001999,2]
[359137307,1745729446761,-239.97,0.0001999,2]
[359137310,1745729446771,-239.97,0.0001999,2]
[359137312,1745729446781,-239.97,0.0001999,2]
[359137314,1745729446792,-239.97,0.0001999,2]
[359137316,1745729446802,-239.97,0.0001999,2]
[359137318,1745729446813,-239.97,0.0001999,2]
[359137320,1745729446823,-239.97,0.0001999,2]
[359137322,1745729446834,-239.97,0.0001999,2]
[359137324,1745729446844,-239.97,0.0001999,2]
[359137326,1745729446854,-239.97,0.0001999,2]
[359137328,1745729446865,-239.97,0.0001999,2]
[359137331,1745729446875,-239.97,0.0001999,2]
[359137333,1745729446886,-239.97,0.0001999,2]
[359137335,1745729446896,-239.97,0.0001999,2]
[359137337,1745729446906,-239.97,0.0001999,2]
[359137339,1745729446916,-239.97,0.0001999,2]
[359137341,1745729446927,-239.97,0.0001999,2]
[359137343,1745729446938,-239.97,0.0001999,2]
[359137345,1745729446948,-239.97,0.0001999,2]
[359137347,1745729446958,-239.97,0.0001999,2]
[359137349,1745729446968,-239.97,0.0001999,2]
[359137351,1745729446978,-239.97,0.0001999,2]
[359137353,1745729446987,-239.97,0.0001999,2]
[359137355,1745729446997,-239.97,0.0001999,2]
[359137357,1745729447009,-239.97,0.0001999,2]
[359137359,1745729447020,-239.97,0.0001999,2]
[359137361,1745729447030,-239.97,0.0001999,2]
[359137364,1745729447041,-239.97,0.0001999,2]
[359137366,1745729447051,-239.97,0.0001999,2]
[359137368,1745729447060,-239.97,0.0001999,2]
[359137370,1745729447070,-239.97,0.0001999,2]
[359137372,1745729447080,-239.97,0.0001999,2]
[359137374,1745729447090,-239.97,0.0001999,2]
[359137376,1745729447101,-239.97,0.0001999,2]
[359137378,1745729447115,-239.97,0.0001999,2]
[359137380,1745729447125,-239.97,0.0001999,2]
[359137382,1745729447135,-239.97,0.0001999,2]
[359137384,1745729447146,-239.97,0.0001999,2]
[359137386,1745729447156,-239.97,0.0001999,2]
[359137389,1745729447166,-239.97,0.0001999,2]
[359137391,1745729447176,-239.97,0.0001999,2]
[359137393,1745729447187,-239.97,0.0001999,2]
[359137395,1745729447198,-239.97,0.0001999,2]
[359137397,1745729447208,-239.97,0.0001999,2]
[359137399,1745729447219,-239.97,0.0001999,2]
[359137401,1745729447230,-239.97,0.0001999,2]
[359137403,1745729447240,-500.0,0.00019997,2]
[359137405,1745729447251,-500.0,0.00019998,2]
[359137407,1745729447264,-585.0,0.0002,2]
[359137409,1745729447274,-209664.27217381,0.0002,2]
[359137411,1745729447285,-2351063.15261154,0.0002,2]
[359137414,1745729447302,-9436.32135403,0.0002,2]
[359137481,1745729450287,-400.0,0.00019928,2]
[359137482,1745729450298,-38868.31829826,0.0002,2]
[359137483,1745729450313,-4708.786,0.0002,2]
[359137484,1745729591850,250.0,0.00017,2]
[359137485,1745729592981,300.0,0.00019,2]
[359137486,1745729633316,886.0,0.00036986,60]
[359137489,1745729781197,256.77,0.00017182,2]
[359137490,1745729782268,-250.0,0.00019446,2]
[359137491,1745729788756,-6.77,0.00019446,2]
[359137492,1745729833043,1000.0,0.00019089,2]
[359137493,1745729890294,250.0,0.00019089,2]
[359137494,1745729898412,173.21,0.00019178,2]
[359137496,1745730373914,200.0,0.00019081,2]
[359137497,1745730555424,450.0,0.00036986,60]
[359137498,1745730574639,200.35,0.00019301,2]
[359137505,1745730632372,-209.37,0.00019649,2]
[359137506,1745730632388,-250.0,0.00019658,2]
[359137507,1745730632399,-35.03241062,0.00019658,2]
[359137508,1745730638265,-164.96758938,0.00019658,2]
[359137509,1745730638275,-200.0,0.00019667,2]
[359137510,1745730638286,-3994.0,0.00019758,2]
[359137511,1745730638296,-701.34803513,0.00019758,2]
[359137512,1745730638428,-542.04443584,0.00019758,2]
[359137513,1745730638440,-324.27695626,0.00019758,2]
[359137752,1745730640818,-703.47677229,0.00019758,2]
[359137761,1745730640902,-3746.49386742,0.00019758,2]
[359137852,1745730646022,-178.35993306,0.00019758,2]
[359137853,1745730646032,-200.471,0.00019758,2]
[359137854,1745730646042,-858.77759832,0.00019758,2]
[359137855,1745730646054,-18.22240168,0.00019758,2]
[359137856,1745730646064,-174.4071,0.00019792,2]
[359137857,1745730646073,-8289.63292,0.00019792,2]
[359137858,1745730646083,-8289.63292,0.00019793,2]
[359137859,1745730646094,-174.4071,0.00019795,2]
[359137860,1745730646103,-8289.63292,0.00019795,2]
[359137861,1745730646113,-174.4071,0.00019797,2]
[359137862,1745730646123,-8289.63292,0.00019797,2]
[359137863,1745730646133,-2044.15461832,0.00019798,2]
[359137910,1745730646947,-6245.47830168,0.00019798,2]
[359137911,1745730646957,-164.8229161,0.00019799,2]
[359137913,1745730646967,-150.0,0.00019821,2]
[359137915,1745730646977,-300.0,0.00019827,2]
[359137917,1745730646987,-1200.0,0.00019827,2]
[359137918,1745730646996,-196.0,0.00019827,2]
[359137920,1745730647006,-920.0,0.00019828,2]
[359137922,1745730647015,-796.0,0.00019828,2]
[359137924,1745730647025,-1287.0,0.00019828,2]
[359137925,1745730647035,-579.0,0.00019828,2]
[359137927,1745730647044,-548.0,0.00019828,2]
[359137929,1745730647054,-1447.0,0.00019828,2]
[359137931,1745730647063,-2064.0,0.00019828,2]
[359137932,1745730647072,-912.0,0.00019828,2]
[359137934,1745730647081,-213.44745136,0.000199,2]
[359137936,1745730647091,-400.0,0.00019928,2]
[359137938,1745730647099,-400.0,0.00019928,2]
[359137939,1745730647110,-400.0,0.00019928,2]
[359137941,1745730647119,-400.0,0.00019928,2]
[359137943,1745730647129,-400.0,0.00019928,2]
[359137944,1745730647139,-400.0,0.00019928,2]
[359137946,1745730647148,-400.0,0.00019928,2]
[359137948,1745730647158,-400.0,0.00019928,2]
[359137949,1745730647167,-400.0,0.00019928,2]
[359137950,1745730647177,-406.55,0.00019928,2]
[359137951,1745730647186,-230.93724808,0.00019928,2]
[359137952,1745730647196,-400.0,0.00019928,2]
[359137953,1745730647205,-400.0,0.00019928,2]
[359137954,1745730647214,-400.0,0.00019928,2]
[359137955,1745730647223,-495.44,0.00019928,2]
[359137956,1745730647233,-400.0,0.00019928,2]
[359137957,1745730647242,-400.0,0.00019928,2]
[359137958,1745730647252,-400.0,0.00019928,2]
[359137959,1745730647262,-400.0,0.00019928,2]
[359137960,1745730647271,-400.0,0.00019928,2]
[359137961,1745730647281,-400.0,0.00019928,2]
[359137962,1745730647290,-400.0,0.00019928,2]
[359137963,1745730647300,-400.0,0.00019928,2]
[359137964,1745730647309,-400.0,0.00019928,2]
[359137965,1745730647319,-400.0,0.00019928,2]
[359137966,1745730647328,-400.0,0.00019928,2]
[359137967,1745730647338,-400.0,0.00019928,2]
[359137968,1745730647347,-400.0,0.00019928,2]
[359137969,1745730647358,-400.0,0.00019928,2]
[359137970,1745730647368,-400.0,0.00019928,2]
[359137971,1745730647377,-400.0,0.00019928,2]
[359137972,1745730647386,-432.98,0.00019928,2]
[359137973,1745730647396,-434.15,0.00019928,2]
[359137974,1745730647406,-400.0,0.00019928,2]
[359137975,1745730647415,-1049.76,0.00019928,2]
[359137976,1745730647425,-456.06530448,0.00019928,2]
[359137977,1745730647435,-400.0,0.00019928,2]
[359137978,1745730647445,-400.0,0.00019928,2]
[359137979,1745730647455,-400.0,0.00019928,2]
[359137980,1745730647465,-400.0,0.00019928,2]
[359137981,1745730647475,-400.0,0.00019928,2]
[359137982,1745730647485,-400.0,0.00019928,2]
[359137983,1745730647496,-400.0,0.00019928,2]
[359137984,1745730647506,-400.0,0.00019928,2]
[359137985,1745730647516,-400.0,0.00019928,2]
[359137986,1745730647526,-400.0,0.00019928,2]
[359137987,1745730647536,-400.0,0.00019928,2]
[359137988,1745730647546,-400.0,0.00019928,2]
[359137989,1745730647556,-400.0,0.00019928,2]
[359137990,1745730647566,-400.0,0.00019928,2]
[359137991,1745730647576,-400.0,0.00019928,2]
[359137992,1745730647585,-404.27,0.00019928,2]
[359137993,1745730647595,-413.87,0.00019928,2]
[359137994,1745730647605,-453.87,0.00019928,2]
[359137995,1745730647615,-400.0,0.00019928,2]
[359137996,1745730647625,-400.0,0.00019928,2]
[359137997,1745730647634,-436.28,0.00019928,2]
[359137998,1745730647644,-400.0,0.00019928,2]
[359137999,1745730647653,-400.0,0.00019928,2]
[359138000,1745730647665,-400.0,0.00019928,2]
[359138001,1745730647674,-400.0,0.00019928,2]
[359138002,1745730647684,-479.71,0.00019928,2]
[359138003,1745730647693,-400.0,0.00019928,2]
[359138004,1745730647703,-400.0,0.00019928,2]
[359138005,1745730647712,-400.0,0.00019928,2]
[359138006,1745730647721,-400.0,0.00019928,2]
[359138007,1745730647731,-400.0,0.00019928,2]
[359138008,1745730647740,-400.0,0.00019928,2]
[359138009,1745730647750,-454.95,0.00019928,2]
[359138010,1745730647759,-505.28108903,0.00019928,2]
[359138011,1745730647768,-1823.92,0.00019928,2]
[359138012,1745730647778,-447.86,0.00019928,2]
[359138013,1745730647788,-400.0,0.00019928,2]
[359138014,1745730647799,-168.92390791,0.00019928,2]
[359138015,1745730647810,-493.27,0.00019928,2]
[359138016,1745730647822,-400.0,0.00019928,2]
[359138017,1745730647833,-531.9,0.00019928,2]
[359138018,1745730647843,-400.0,0.00019928,2]
[359138019,1745730647852,-427.35,0.00019928,2]
[359138020,1745730647862,-400.0,0.00019928,2]
[359138021,1745730647871,-400.0,0.00019928,2]
[359138022,1745730647883,-400.0,0.00019928,2]
[359138023,1745730647895,-400.0,0.00019928,2]
[359138024,1745730647907,-400.0,0.00019928,2]
[359138025,1745730647917,-400.0,0.00019928,2]
[359138026,1745730647927,-503.77949868,0.00019928,2]
[359138027,1745730647936,-400.0,0.00019928,2]
[359138028,1745730647947,-199.42871528,0.00019928,2]
[359138029,1745730647957,-518.21,0.00019928,2]
[359138030,1745730647966,-452.61,0.00019928,2]
[359138031,1745730647976,-400.0,0.00019928,2]
[359138032,1745730647986,-400.0,0.00019928,2]
[359138033,1745730647995,-482.78,0.00019928,2]
[359138034,1745730648005,-228.65825424,0.00019928,2]
[359138035,1745730648015,-400.0,0.00019928,2]
[359138036,1745730648024,-400.0,0.00019928,2]
[359138037,1745730648033,-400.0,0.00019928,2]
[359138038,1745730648043,-400.0,0.00019928,2]
[359138039,1745730648053,-2160.12,0.00019928,2]
[359138040,1745730648063,-669.03,0.00019928,2]
[359138041,1745730648072,-624.84,0.00019928,2]
[359138042,1745730648081,-400.0,0.00019928,2]
[359138043,1745730648091,-400.0,0.00019928,2]
[359138044,1745730648101,-420.42,0.00019928,2]
[359138045,1745730648111,-438.37,0.00019928,2]
[359138046,1745730648120,-400.0,0.00019928,2]
[359138047,1745730648130,-442.19,0.00019928,2]
[359138048,1745730648140,-400.0,0.00019928,2]
[359138049,1745730648150,-174.4071,0.0001997,2]
[359138050,1745730648160,-8289.63292,0.0001997,2]
[359138051,1745730648170,-174.4071,0.00019971,2]
[359138052,1745730648180,-8289.63292,0.00019971,2]
[359138053,1745730648190,-400.0,0.00019972,2]
[359138054,1745730648199,-400.0,0.00019972,2]
[359138055,1745730648209,-400.0,0.00019972,2]
[359138056,1745730648219,-250.0,0.00019972,2]
[359138057,1745730648229,-400.0,0.00019972,2]
[359138058,1745730648239,-400.0,0.00019972,2]
[359138059,1745730648249,-415.24,0.00019972,2]
[359138060,1745730648258,-400.0,0.00019972,2]
[359138061,1745730648268,-400.0,0.00019972,2]
[359138062,1745730648278,-400.0,0.00019972,2]
[359138063,1745730648287,-246.75976346,0.00019972,2]
[359138064,1745730648297,-426.82,0.00019972,2]
[359138065,1745730648307,-400.0,0.00019972,2]
[359138066,1745730648317,-512.1,0.00019972,2]
[359138067,1745730648326,-400.0,0.00019972,2]
[359138068,1745730648336,-558.75,0.00019972,2]
[359138069,1745730648345,-400.0,0.00019972,2]
[359138070,1745730648355,-400.0,0.00019972,2]
[359138071,1745730648366,-400.0,0.00019972,2]
[359138072,1745730648376,-446.43,0.00019972,2]
[359138073,1745730648385,-400.0,0.00019972,2]
[359138074,1745730648395,-400.0,0.00019972,2]
[359138075,1745730648405,-400.0,0.00019972,2]
[359138076,1745730648414,-400.0,0.00019972,2]
[359138077,1745730648424,-400.0,0.00019972,2]
[359138078,1745730648434,-458.41,0.00019972,2]
[359138079,1745730648443,-400.0,0.00019972,2]
[359138080,1745730648452,-400.0,0.00019972,2]
[359138081,1745730648462,-400.0,0.00019972,2]
[359138082,1745730648472,-400.0,0.00019972,2]
[359138083,1745730648484,-1314.79,0.00019972,2]
[359138084,1745730648495,-400.0,0.00019972,2]
[359138085,1745730648505,-400.0,0.00019972,2]
[359138086,1745730648514,-400.0,0.00019972,2]
[359138087,1745730648523,-400.0,0.00019972,2]
[359138088,1745730648533,-400.0,0.00019972,2]
[359138089,1745730648543,-400.0,0.00019972,2]
[359138090,1745730648553,-400.0,0.00019972,2]
[359138091,1745730648563,-2186.23,0.00019972,2]
[359138092,1745730648573,-400.0,0.00019972,2]
[359138093,1745730648582,-429.23,0.00019972,2]
[359138094,1745730648592,-400.0,0.00019972,2]
[359138095,1745730648601,-400.0,0.00019972,2]
[359138096,1745730648611,-400.0,0.00019972,2]
[359138097,1745730648620,-400.0,0.00019972,2]
[359138098,1745730648629,-400.0,0.00019972,2]
[359138099,1745730648639,-400.0,0.00019972,2]
[359138100,1745730648648,-400.0,0.00019972,2]
[359138101,1745730648658,-400.0,0.00019972,2]
[359138102,1745730648667,-400.0,0.00019972,2]
[359138103,1745730648676,-154.3573539,0.00019972,2]
[359138104,1745730648685,-497.26,0.00019972,2]
[359138105,1745730648695,-525.61,0.00019972,2]
[359138106,1745730648704,-400.0,0.00019972,2]
[359138107,1745730648714,-400.0,0.00019972,2]
[359138108,1745730648723,-400.0,0.00019972,2]
[359138109,1745730648732,-400.0,0.00019972,2]
[359138110,1745730648741,-400.0,0.00019972,2]
[359138111,1745730648751,-400.0,0.00019972,2]
[359138112,1745730648760,-400.0,0.00019972,2]
[359138113,1745730648769,-400.0,0.00019972,2]
[359138114,1745730648779,-500.0,0.00019973,2]
[359138115,1745730648788,-500.0,0.00019973,2]
[359138116,1745730648798,-157.94219724,0.00019973,2]
[359138117,1745730648808,-1000.0,0.0001998,2]
[359138118,1745730648821,-1000.0,0.0001998,2]
[359138119,1745730648830,-8289.63292,0.00019985,2]
[359138120,1745730648839,-207.4,0.00019988,2]
[359138121,1745730648849,-400.0,0.00019997,2]
[359138122,1745730648861,-400.0,0.00019997,2]
[359138123,1745730648871,-400.0,0.00019997,2]
[359138124,1745730648880,-400.0,0.00019997,2]
[359138125,1745730648890,-400.0,0.00019997,2]
[359138126,1745730648900,-400.0,0.00019997,2]
[359138127,1745730648909,-400.0,0.00019997,2]
[359138128,1745730648919,-400.0,0.00019997,2]
[359138129,1745730648928,-400.0,0.00019997,2]
[359138130,1745730648937,-400.0,0.00019997,2]
[359138131,1745730648946,-400.0,0.00019997,2]
[359138132,1745730648957,-400.0,0.00019997,2]
[359138133,1745730648967,-400.0,0.00019997,2]
[359138134,1745730648977,-400.0,0.00019997,2]
[359138135,1745730648987,-400.0,0.00019997,2]
[359138136,1745730648996,-400.0,0.00019997,2]
[359138137,1745730649005,-400.0,0.00019997,2]
[359138138,1745730649015,-400.0,0.00019997,2]
[359138139,1745730649024,-3284.01,0.00019997,2]
[359138140,1745730649033,-400.0,0.00019997,2]
[359138141,1745730649043,-1120.17,0.00019997,2]
[359138142,1745730649053,-400.0,0.00019997,2]
[359138143,1745730649062,-400.0,0.00019997,2]
[359138144,1745730649072,-400.0,0.00019997,2]
[359138145,1745730649082,-543.03251446,0.00019997,2]
[359138146,1745730649091,-400.0,0.00019997,2]
[359138147,1745730649101,-400.0,0.00019997,2]
[359138148,1745730649111,-400.0,0.00019997,2]
[359138149,1745730649120,-400.0,0.00019997,2]
[359138150,1745730649130,-430.14,0.00019997,2]
[359138151,1745730649139,-400.0,0.00019997,2]
[359138152,1745730649148,-400.0,0.00019997,2]
[359138153,1745730649158,-400.0,0.00019998,2]
[359138154,1745730649168,-400.0,0.00019998,2]
[359138155,1745730649177,-400.0,0.00019998,2]
[359138156,1745730649187,-400.0,0.00019998,2]
[359138157,1745730649196,-400.0,0.00019998,2]
[359138158,1745730649206,-400.0,0.00019998,2]
[359138159,1745730649215,-400.0,0.00019998,2]
[359138160,1745730649226,-400.0,0.00019998,2]
[359138161,1745730649236,-400.0,0.00019998,2]
[359138162,1745730649247,-400.0,0.00019998,2]
[359138163,1745730649256,-400.0,0.00019998,2]
[359138164,1745730649266,-400.0,0.00019998,2]
[359138165,1745730649276,-400.0,0.00019998,2]
[359138166,1745730649285,-400.0,0.00019998,2]
[359138167,1745730649295,-400.0,0.00019998,2]
[359138168,1745730649305,-400.0,0.00019998,2]
[359138169,1745730649315,-400.0,0.00019998,2]
[359138170,1745730649325,-400.0,0.00019998,2]
[359138171,1745730649335,-400.0,0.00019998,2]
[359138172,1745730649344,-400.0,0.00019998,2]
[359138173,1745730649354,-400.0,0.00019998,2]
[359138174,1745730649364,-400.0,0.00019998,2]
[359138175,1745730649374,-400.0,0.00019998,2]
[359138176,1745730649384,-400.0,0.00019998,2]
[359138177,1745730649393,-503.27,0.00019998,2]
[359138178,1745730649403,-400.0,0.00019998,2]
[359138179,1745730649414,-400.0,0.00019998,2]